[Event "Titled Tuesday Blitz October 18 Late 2022"]
[White "Roque Sola, Jose Luis"]
[Black "Jaferian, Koosha"]
[WhiteFideId "5120390"]
[BlackFideId "12507440"]
[WhiteElo "2117"]
[BlackElo "2127"]
[Result "0-1"]
[Round "02"]
[TimeControl "180+1"]
[Date "2022.10.19"]
[WhiteClock "0:00:01"]
[BlackClock "0:01:00"]

1. c4 {[%clk 0:03:00]}  c5 {[%clk 0:02:59]} 2. Nc3 {[%clk 0:02:59]}  Nc6 {[%clk 0:02:59]} 3. Nf3 {[%clk 0:02:59]}  g6 {[%clk 0:02:59]} 4. g3 {[%clk 0:02:59]}  Bg7 {[%clk 0:02:59]} 5. Bg2 {[%clk 0:02:58]}  e5 {[%clk 0:03:00]} 6. d3 {[%clk 0:02:58]}  d6 {[%clk 0:03:00]} 7. a3 {[%clk 0:02:56]}  Nge7 {[%clk 0:03:00]} 8. O-O {[%clk 0:02:56]}  O-O {[%clk 0:02:57]} 9. Rb1 {[%clk 0:02:56]}  a5 {[%clk 0:02:58]} 10. Nd2 {[%clk 0:02:52]}  Be6 {[%clk 0:02:54]} 11. Nd5 {[%clk 0:02:52]}  Rb8 {[%clk 0:02:49]} 12. b3 {[%clk 0:02:46]}  b5 {[%clk 0:02:43]} 13. Nxe7+ {[%clk 0:02:45]}  Nxe7 {[%clk 0:02:41]} 14. cxb5 {[%clk 0:02:43]}  Rxb5 {[%clk 0:02:42]} 15. Nc4 {[%clk 0:02:27]}  d5 {[%clk 0:02:31]} 16. a4 {[%clk 0:02:24]}  Rb8 {[%clk 0:02:25]} 17. Na3 {[%clk 0:02:24]}  Nc6 {[%clk 0:02:10]} 18. Nb5 {[%clk 0:02:22]}  Qb6 {[%clk 0:02:05]} 19. Bd2 {[%clk 0:02:20]}  Na7 {[%clk 0:02:00]} 20. Nxa7 {[%clk 0:02:12]}  Qxa7 {[%clk 0:02:01]} 21. Qc1 {[%clk 0:01:54]}  Rfc8 {[%clk 0:01:57]} 22. Bh6 {[%clk 0:01:51]}  Bh8 {[%clk 0:01:52]} 23. Qd2 {[%clk 0:01:36]}  Rb4 {[%clk 0:01:45]} 24. h4 {[%clk 0:01:32]}  Qb6 {[%clk 0:01:38]} 25. h5 {[%clk 0:01:31]}  Rb8 {[%clk 0:01:24]} 26. hxg6 {[%clk 0:01:25]}  hxg6 {[%clk 0:01:23]} 27. Qg5 {[%clk 0:01:02]}  Rxb3 {[%clk 0:01:17]} 28. Rxb3 {[%clk 0:01:02]}  Qxb3 {[%clk 0:01:18]} 29. Qe7 {[%clk 0:00:45]}  Qb6 {[%clk 0:01:12]} 30. Kh2 {[%clk 0:00:18]}  Bg7 {[%clk 0:01:12]} 31. Bxg7 {[%clk 0:00:17]}  Kxg7 {[%clk 0:01:12]} 32. Qg5 {[%clk 0:00:14]}  f6 {[%clk 0:01:09]} 33. Qe3 {[%clk 0:00:13]}  c4 {[%clk 0:01:06]} 34. dxc4 {[%clk 0:00:10]}  Qxe3 {[%clk 0:01:05]} 35. fxe3 {[%clk 0:00:11]}  dxc4 {[%clk 0:01:05]} 36. Rc1 {[%clk 0:00:11]}  Rb4 {[%clk 0:01:05]} 37. Rd1 {[%clk 0:00:10]}  Rxa4 {[%clk 0:01:04]} 38. Rd6 {[%clk 0:00:10]}  Kf7 {[%clk 0:01:01]} 39. Bc6 {[%clk 0:00:07]}  Ra3 {[%clk 0:01:01]} 40. e4 {[%clk 0:00:05]}  Re3 {[%clk 0:00:59]} 41. Rd8 {[%clk 0:00:04]}  Rxe2+ {[%clk 0:01:00]} 42. Kg1 {[%clk 0:00:01]}  c3 {[%clk 0:01:00]} 43. Be8+ {[%clk 0:00:01]}  Ke7 {[%clk 0:01:00]} 0-1


[Site "https://www.chess.com"]

[Event "Titled Tuesday Blitz October 18 Late 2022"]
[White "Rustemov, Alexander"]
[Black "Cruz, William Ferreira Da"]
[WhiteFideId "4119002"]
[BlackFideId "2118050"]
[WhiteElo "2753"]
[BlackElo "2509"]
[Result "1-0"]
[Round "02"]
[TimeControl "180+1"]
[Date "2022.10.19"]
[WhiteClock "0:00:26"]
[BlackClock "0:00:09"]

1. d4 {[%clk 0:03:00]}  Nf6 {[%clk 0:02:55]} 2. c4 {[%clk 0:03:01]}  g6 {[%clk 0:02:54]} 3. Nf3 {[%clk 0:03:01]}  Bg7 {[%clk 0:02:54]} 4. g3 {[%clk 0:03:02]}  O-O {[%clk 0:02:55]} 5. Bg2 {[%clk 0:03:02]}  d6 {[%clk 0:02:54]} 6. Nc3 {[%clk 0:03:03]}  Nbd7 {[%clk 0:02:53]} 7. O-O {[%clk 0:03:03]}  e5 {[%clk 0:02:53]} 8. e4 {[%clk 0:03:04]}  exd4 {[%clk 0:02:53]} 9. Nxd4 {[%clk 0:03:05]}  Re8 {[%clk 0:02:53]} 10. h3 {[%clk 0:03:04]}  Nc5 {[%clk 0:02:52]} 11. Re1 {[%clk 0:03:04]}  Bd7 {[%clk 0:02:53]} 12. Rb1 {[%clk 0:03:04]}  a5 {[%clk 0:02:49]} 13. b3 {[%clk 0:03:02]}  h6 {[%clk 0:02:46]} 14. Kh2 {[%clk 0:03:00]}  h5 {[%clk 0:02:41]} 15. f3 {[%clk 0:02:57]}  c6 {[%clk 0:02:25]} 16. Be3 {[%clk 0:02:56]}  Qc7 {[%clk 0:02:17]} 17. Qd2 {[%clk 0:02:43]}  Kh7 {[%clk 0:01:35]} 18. Bf4 {[%clk 0:02:36]}  Rad8 {[%clk 0:01:32]} 19. Rbd1 {[%clk 0:02:35]}  h4 {[%clk 0:01:27]} 20. g4 {[%clk 0:02:34]}  Ng8 {[%clk 0:01:20]} 21. Qf2 {[%clk 0:02:30]}  Be5 {[%clk 0:01:15]} 22. Qxh4+ {[%clk 0:02:29]}  Kg7 {[%clk 0:01:15]} 23. Qg3 {[%clk 0:02:24]}  Ne6 {[%clk 0:01:14]} 24. Nxe6+ {[%clk 0:02:19]}  Bxe6 {[%clk 0:01:14]} 25. Ne2 {[%clk 0:02:13]}  c5 {[%clk 0:01:05]} 26. h4 {[%clk 0:02:10]}  Ne7 {[%clk 0:01:03]} 27. Kg1 {[%clk 0:01:55]}  Nc6 {[%clk 0:01:00]} 28. Rd2 {[%clk 0:01:51]}  a4 {[%clk 0:00:50]} 29. Red1 {[%clk 0:01:51]}  axb3 {[%clk 0:00:48]} 30. axb3 {[%clk 0:01:51]}  b5 {[%clk 0:00:44]} 31. cxb5 {[%clk 0:01:47]}  Nd4 {[%clk 0:00:44]} 32. Nxd4 {[%clk 0:01:46]}  Bxd4+ {[%clk 0:00:44]} 33. Rxd4 {[%clk 0:01:40]}  cxd4 {[%clk 0:00:43]} 34. Rxd4 {[%clk 0:01:41]}  Bxb3 {[%clk 0:00:39]} 35. Bf1 {[%clk 0:01:18]}  Qb6 {[%clk 0:00:30]} 36. Qf2 {[%clk 0:01:10]}  d5 {[%clk 0:00:26]} 37. exd5 {[%clk 0:01:00]}  Rxd5 {[%clk 0:00:25]} 38. Rxd5 {[%clk 0:00:59]}  Qxf2+ {[%clk 0:00:24]} 39. Kxf2 {[%clk 0:00:59]}  Bxd5 {[%clk 0:00:24]} 40. b6 {[%clk 0:00:58]}  Bb7 {[%clk 0:00:22]} 41. Bd3 {[%clk 0:00:55]}  Re6 {[%clk 0:00:20]} 42. Bc7 {[%clk 0:00:53]}  f6 {[%clk 0:00:18]} 43. g5 {[%clk 0:00:40]}  fxg5 {[%clk 0:00:16]} 44. hxg5 {[%clk 0:00:39]}  Re7 {[%clk 0:00:13]} 45. f4 {[%clk 0:00:29]}  Rf7 {[%clk 0:00:13]} 46. Ke3 {[%clk 0:00:29]}  Re7+ {[%clk 0:00:13]} 47. Be5+ {[%clk 0:00:28]}  Kh7 {[%clk 0:00:12]} 48. Be4 {[%clk 0:00:28]}  Bxe4 {[%clk 0:00:09]} 49. Kxe4 {[%clk 0:00:28]}  Rb7 {[%clk 0:00:08]} 50. Bc7 {[%clk 0:00:27]}  Kg8 {[%clk 0:00:09]} 51. Kd5 {[%clk 0:00:26]} 1-0


[Site "https://www.chess.com"]

[Event "Titled Tuesday Blitz October 18 Late 2022"]
[White "Schut, Han"]
[Black "Hajiyev, Kanan"]
[WhiteFideId "1005561"]
[BlackFideId "13404148"]
[WhiteElo "2024"]
[BlackElo "2118"]
[Result "0-1"]
[Round "02"]
[TimeControl "180+1"]
[Date "2022.10.19"]
[WhiteClock "0:00:14"]
[BlackClock "0:00:09"]

1. e4 {[%clk 0:03:00]}  c6 {[%clk 0:02:52]} 2. d4 {[%clk 0:02:59]}  d5 {[%clk 0:02:53]} 3. e5 {[%clk 0:03:00]}  a6 {[%clk 0:02:53]} 4. f4 {[%clk 0:02:58]}  Nh6 {[%clk 0:02:53]} 5. Nf3 {[%clk 0:02:58]}  Bg4 {[%clk 0:02:52]} 6. Bd3 {[%clk 0:02:54]}  e6 {[%clk 0:02:52]} 7. c3 {[%clk 0:02:51]}  c5 {[%clk 0:02:52]} 8. Be3 {[%clk 0:02:36]}  Qb6 {[%clk 0:02:51]} 9. dxc5 {[%clk 0:02:25]}  Qxb2 {[%clk 0:02:35]} 10. Nbd2 {[%clk 0:02:24]}  Qxc3 {[%clk 0:02:31]} 11. Qb1 {[%clk 0:01:54]}  Bxf3 {[%clk 0:02:12]} 12. gxf3 {[%clk 0:01:18]}  Bxc5 {[%clk 0:02:10]} 13. Bxc5 {[%clk 0:01:07]}  Qxc5 {[%clk 0:02:03]} 14. Qxb7 {[%clk 0:01:07]}  Qc6 {[%clk 0:01:31]} 15. Qb4 {[%clk 0:00:58]}  a5 {[%clk 0:01:21]} 16. Qa3 {[%clk 0:00:56]}  f6 {[%clk 0:00:58]} 17. Rc1 {[%clk 0:00:52]}  Qd7 {[%clk 0:00:51]} 18. Qc5 {[%clk 0:00:41]}  Kf7 {[%clk 0:00:36]} 19. Bb5 {[%clk 0:00:37]}  Qe7 {[%clk 0:00:36]} 20. Qxe7+ {[%clk 0:00:28]}  Kxe7 {[%clk 0:00:36]} 21. Rc7+ {[%clk 0:00:28]}  Kd8 {[%clk 0:00:34]} 22. Rxg7 {[%clk 0:00:28]}  Nf5 {[%clk 0:00:32]} 23. Rf7 {[%clk 0:00:20]}  fxe5 {[%clk 0:00:33]} 24. fxe5 {[%clk 0:00:20]}  Ne7 {[%clk 0:00:31]} 25. Rg1 {[%clk 0:00:19]}  Nbc6 {[%clk 0:00:31]} 26. Rgg7 {[%clk 0:00:19]}  Rb8 {[%clk 0:00:09]} 27. Bxc6 {[%clk 0:00:18]}  Nxc6 {[%clk 0:00:10]} 28. Rxh7 {[%clk 0:00:18]}  Rxh7 {[%clk 0:00:10]} 29. Rxh7 {[%clk 0:00:19]}  Rb2 {[%clk 0:00:09]} 30. f4 {[%clk 0:00:18]}  Rxa2 {[%clk 0:00:09]} 31. h4 {[%clk 0:00:19]}  a4 {[%clk 0:00:08]} 32. h5 {[%clk 0:00:18]}  a3 {[%clk 0:00:09]} 33. h6 {[%clk 0:00:19]}  Nd4 {[%clk 0:00:09]} 34. Rh8+ {[%clk 0:00:18]}  Ke7 {[%clk 0:00:09]} 35. h7 {[%clk 0:00:19]}  Ra1+ {[%clk 0:00:10]} 36. Kf2 {[%clk 0:00:18]}  Rh1 {[%clk 0:00:10]} 37. Ra8 {[%clk 0:00:17]}  a2 {[%clk 0:00:09]} 38. Rxa2 {[%clk 0:00:15]}  Nc6 {[%clk 0:00:09]} 39. Rc2 {[%clk 0:00:14]}  Kd7 {[%clk 0:00:09]} 40. Nf3 {[%clk 0:00:14]}  Rxh7 {[%clk 0:00:09]} 41. Ng5 {[%clk 0:00:14]}  Rh2+ {[%clk 0:00:09]} 0-1


[Site "https://www.chess.com"]

[Event "Titled Tuesday Blitz October 18 Late 2022"]
[White "Sernecki, Franciszek"]
[Black "Alexikov, Alexander"]
[WhiteFideId "1169297"]
[BlackFideId "14103958"]
[WhiteElo "2209"]
[BlackElo "2222"]
[Result "1/2-1/2"]
[Round "02"]
[TimeControl "180+1"]
[Date "2022.10.19"]
[WhiteClock "0:01:21"]
[BlackClock "0:00:19"]

1. c4 {[%clk 0:03:00]}  Nf6 {[%clk 0:02:59]} 2. Nc3 {[%clk 0:03:01]}  g6 {[%clk 0:02:59]} 3. e4 {[%clk 0:02:59]}  d6 {[%clk 0:02:58]} 4. g3 {[%clk 0:03:00]}  Bg7 {[%clk 0:02:57]} 5. Bg2 {[%clk 0:02:54]}  O-O {[%clk 0:02:57]} 6. Nge2 {[%clk 0:02:48]}  c5 {[%clk 0:02:53]} 7. O-O {[%clk 0:02:45]}  Nc6 {[%clk 0:02:52]} 8. d3 {[%clk 0:02:43]}  Bd7 {[%clk 0:02:43]} 9. a3 {[%clk 0:02:41]}  Qc8 {[%clk 0:02:43]} 10. Rb1 {[%clk 0:02:38]}  Bh3 {[%clk 0:02:34]} 11. b4 {[%clk 0:02:37]}  Bxg2 {[%clk 0:02:33]} 12. Kxg2 {[%clk 0:02:37]}  b6 {[%clk 0:02:32]} 13. Nd5 {[%clk 0:02:34]}  e6 {[%clk 0:02:22]} 14. Nxf6+ {[%clk 0:02:32]}  Bxf6 {[%clk 0:02:21]} 15. Bb2 {[%clk 0:02:33]}  Bxb2 {[%clk 0:02:19]} 16. Rxb2 {[%clk 0:02:34]}  e5 {[%clk 0:02:17]} 17. Nc3 {[%clk 0:02:31]}  f5 {[%clk 0:02:06]} 18. f4 {[%clk 0:02:31]}  exf4 {[%clk 0:02:02]} 19. Rxf4 {[%clk 0:02:30]}  Nd4 {[%clk 0:01:59]} 20. Rbf2 {[%clk 0:02:28]}  Qb7 {[%clk 0:01:50]} 21. Nd5 {[%clk 0:02:26]}  Kg7 {[%clk 0:01:46]} 22. Qd2 {[%clk 0:02:20]}  Rf7 {[%clk 0:01:45]} 23. exf5 {[%clk 0:02:19]}  Rxf5 {[%clk 0:01:42]} 24. Rxf5 {[%clk 0:02:19]}  Nxf5 {[%clk 0:01:41]} 25. Qf4 {[%clk 0:02:19]}  h5 {[%clk 0:01:29]} 26. Qe4 {[%clk 0:02:02]}  Rf8 {[%clk 0:01:17]} 27. Nf4 {[%clk 0:01:54]}  Qxe4+ {[%clk 0:01:12]} 28. dxe4 {[%clk 0:01:55]}  Ne3+ {[%clk 0:01:08]} 29. Kh3 {[%clk 0:01:55]}  Re8 {[%clk 0:01:07]} 30. Nd5 {[%clk 0:01:52]}  Nxc4 {[%clk 0:00:56]} 31. Re2 {[%clk 0:01:51]}  Re5 {[%clk 0:00:52]} 32. Nf4 {[%clk 0:01:44]}  Nxa3 {[%clk 0:00:50]} 33. Nd3 {[%clk 0:01:44]}  Re7 {[%clk 0:00:46]} 34. bxc5 {[%clk 0:01:45]}  bxc5 {[%clk 0:00:44]} 35. e5 {[%clk 0:01:45]}  Nc4 {[%clk 0:00:41]} 36. exd6 {[%clk 0:01:43]}  Rd7 {[%clk 0:00:40]} 37. Nxc5 {[%clk 0:01:42]}  Rxd6 {[%clk 0:00:40]} 38. Re7+ {[%clk 0:01:41]}  Kh6 {[%clk 0:00:39]} 39. Rxa7 {[%clk 0:01:42]}  Ne3 {[%clk 0:00:37]} 40. Ra8 {[%clk 0:01:41]}  g5 {[%clk 0:00:35]} 41. g4 {[%clk 0:01:29]}  Nxg4 {[%clk 0:00:31]} 42. Ra6 {[%clk 0:01:27]}  Rxa6 {[%clk 0:00:29]} 43. Nxa6 {[%clk 0:01:28]}  Kg6 {[%clk 0:00:28]} 44. Kg3 {[%clk 0:01:27]}  Kf5 {[%clk 0:00:28]} 45. h4 {[%clk 0:01:28]}  Ne5 {[%clk 0:00:26]} 46. hxg5 {[%clk 0:01:27]}  Kxg5 {[%clk 0:00:26]} 47. Nc5 {[%clk 0:01:27]}  h4+ {[%clk 0:00:25]} 48. Kh3 {[%clk 0:01:28]}  Kh5 {[%clk 0:00:24]} 49. Ne4 {[%clk 0:01:28]}  Ng6 {[%clk 0:00:24]} 50. Kh2 {[%clk 0:01:25]}  Nf4 {[%clk 0:00:22]} 51. Nf2 {[%clk 0:01:26]}  Kg5 {[%clk 0:00:21]} 52. Nh1 {[%clk 0:01:27]}  Kg4 {[%clk 0:00:21]} 53. Nf2+ {[%clk 0:01:28]}  Kf3 {[%clk 0:00:22]} 54. Nd1 {[%clk 0:01:26]}  Ke2 {[%clk 0:00:21]} 55. Nc3+ {[%clk 0:01:26]}  Kf3 {[%clk 0:00:21]} 56. Nd1 {[%clk 0:01:25]}  Kg4 {[%clk 0:00:20]} 57. Ne3+ {[%clk 0:01:23]}  Kh5 {[%clk 0:00:20]} 58. Ng2 {[%clk 0:01:22]}  Ne2 {[%clk 0:00:19]} 59. Nxh4 {[%clk 0:01:21]} 1/2-1/2


[Site "https://www.chess.com"]

[Event "Titled Tuesday Blitz October 18 Late 2022"]
[White "Shapiro, Daniel"]
[Black "Ladan, Nicholas"]
[WhiteFideId "2001780"]
[BlackFideId "30918855"]
[WhiteElo "2198"]
[BlackElo "2167"]
[Result "1-0"]
[Round "02"]
[TimeControl "180+1"]
[Date "2022.10.19"]
[WhiteClock "0:00:24"]
[BlackClock "0:00:08"]

1. d4 {[%clk 0:03:00]}  d5 {[%clk 0:02:59]} 2. c4 {[%clk 0:03:00]}  e6 {[%clk 0:02:58]} 3. Nf3 {[%clk 0:02:56]}  Nf6 {[%clk 0:02:59]} 4. g3 {[%clk 0:02:56]}  Bb4+ {[%clk 0:02:56]} 5. Nc3 {[%clk 0:02:54]}  O-O {[%clk 0:02:55]} 6. Bg2 {[%clk 0:02:53]}  Ne4 {[%clk 0:02:55]} 7. Qc2 {[%clk 0:02:45]}  b6 {[%clk 0:02:42]} 8. cxd5 {[%clk 0:02:41]}  exd5 {[%clk 0:02:42]} 9. O-O {[%clk 0:02:41]}  Nxc3 {[%clk 0:02:42]} 10. bxc3 {[%clk 0:02:40]}  Be7 {[%clk 0:02:42]} 11. Bf4 {[%clk 0:02:33]}  Bb7 {[%clk 0:02:41]} 12. Ne5 {[%clk 0:02:30]}  Nd7 {[%clk 0:02:39]} 13. c4 {[%clk 0:02:25]}  Nxe5 {[%clk 0:02:34]} 14. dxe5 {[%clk 0:02:22]}  Rb8 {[%clk 0:02:22]} 15. cxd5 {[%clk 0:02:20]}  Bc5 {[%clk 0:02:13]} 16. Rfd1 {[%clk 0:02:15]}  Re8 {[%clk 0:02:11]} 17. h4 {[%clk 0:02:13]}  a5 {[%clk 0:02:08]} 18. Be4 {[%clk 0:02:06]}  g6 {[%clk 0:02:06]} 19. h5 {[%clk 0:02:05]}  Qd7 {[%clk 0:01:56]} 20. Kg2 {[%clk 0:01:54]}  Qg4 {[%clk 0:01:41]} 21. f3 {[%clk 0:01:49]}  Qd7 {[%clk 0:01:34]} 22. hxg6 {[%clk 0:01:30]}  hxg6 {[%clk 0:01:29]} 23. Bg5 {[%clk 0:01:24]}  Bf8 {[%clk 0:01:25]} 24. Bf6 {[%clk 0:01:18]}  Bg7 {[%clk 0:01:25]} 25. Bxg6 {[%clk 0:01:12]}  fxg6 {[%clk 0:01:21]} 26. Qxg6 {[%clk 0:01:11]}  Qf7 {[%clk 0:01:19]} 27. Qg5 {[%clk 0:01:10]}  Rbd8 {[%clk 0:01:12]} 28. Rd4 {[%clk 0:01:07]}  Rd7 {[%clk 0:01:01]} 29. Rg4 {[%clk 0:01:06]}  Kf8 {[%clk 0:01:01]} 30. e6 {[%clk 0:00:57]}  Qxf6 {[%clk 0:00:55]} 31. Rf4 {[%clk 0:00:52]}  Ke7 {[%clk 0:00:41]} 32. Rxf6 {[%clk 0:00:39]}  Bxf6 {[%clk 0:00:42]} 33. Qg6 {[%clk 0:00:38]}  Rxd5 {[%clk 0:00:34]} 34. Qf7+ {[%clk 0:00:37]}  Kd8 {[%clk 0:00:33]} 35. Qxf6+ {[%clk 0:00:38]}  Kc8 {[%clk 0:00:34]} 36. Rc1 {[%clk 0:00:33]}  c5 {[%clk 0:00:14]} 37. e7 {[%clk 0:00:33]}  Kc7 {[%clk 0:00:11]} 38. Rb1 {[%clk 0:00:30]}  Bc6 {[%clk 0:00:11]} 39. e4 {[%clk 0:00:27]}  Rd7 {[%clk 0:00:09]} 40. Qf4+ {[%clk 0:00:24]}  Kb7 {[%clk 0:00:08]} 41. Qe5 {[%clk 0:00:24]} 1-0


[Site "https://www.chess.com"]

[Event "Titled Tuesday Blitz October 18 Late 2022"]
[White "Shuvalov, Evgenij"]
[Black "Yanchenko, Roman"]
[WhiteFideId "4187237"]
[BlackFideId "4137329"]
[WhiteElo "2531"]
[BlackElo "2778"]
[Result "0-1"]
[Round "02"]
[TimeControl "180+1"]
[Date "2022.10.19"]
[WhiteClock "0:00:44"]
[BlackClock "0:01:11"]

1. d4 {[%clk 0:03:00]}  d5 {[%clk 0:02:53]} 2. c4 {[%clk 0:03:00]}  c6 {[%clk 0:02:54]} 3. Nf3 {[%clk 0:02:58]}  Bf5 {[%clk 0:02:53]} 4. cxd5 {[%clk 0:02:56]}  cxd5 {[%clk 0:02:53]} 5. Nc3 {[%clk 0:02:56]}  e6 {[%clk 0:02:53]} 6. Qb3 {[%clk 0:02:55]}  Qb6 {[%clk 0:02:53]} 7. Qxb6 {[%clk 0:02:54]}  axb6 {[%clk 0:02:54]} 8. e3 {[%clk 0:02:54]}  Nc6 {[%clk 0:02:54]} 9. Bb5 {[%clk 0:02:52]}  f6 {[%clk 0:02:54]} 10. Bd2 {[%clk 0:02:49]}  Bd6 {[%clk 0:02:54]} 11. Ke2 {[%clk 0:02:46]}  Ne7 {[%clk 0:02:54]} 12. Rhc1 {[%clk 0:02:46]}  g5 {[%clk 0:02:52]} 13. h3 {[%clk 0:02:45]}  h5 {[%clk 0:02:51]} 14. Ne1 {[%clk 0:02:43]}  Kf7 {[%clk 0:02:48]} 15. Nd3 {[%clk 0:02:42]}  Na7 {[%clk 0:02:32]} 16. Ba4 {[%clk 0:02:34]}  g4 {[%clk 0:02:32]} 17. h4 {[%clk 0:02:33]}  g3 {[%clk 0:02:32]} 18. f3 {[%clk 0:02:32]}  Ng6 {[%clk 0:02:28]} 19. Rh1 {[%clk 0:02:31]}  Rhc8 {[%clk 0:02:26]} 20. Bb3 {[%clk 0:02:15]}  Nc6 {[%clk 0:02:22]} 21. Nb5 {[%clk 0:02:10]}  Be7 {[%clk 0:02:21]} 22. Be1 {[%clk 0:02:00]}  Na5 {[%clk 0:02:20]} 23. Bd1 {[%clk 0:01:55]}  Nc4 {[%clk 0:02:19]} 24. Bc3 {[%clk 0:01:44]}  Bf8 {[%clk 0:01:49]} 25. Bb3 {[%clk 0:01:41]}  Na5 {[%clk 0:01:40]} 26. Bc2 {[%clk 0:01:39]}  Kg7 {[%clk 0:01:25]} 27. Rac1 {[%clk 0:01:31]}  Nc6 {[%clk 0:01:22]} 28. Bb1 {[%clk 0:01:27]}  Be7 {[%clk 0:01:20]} 29. Be1 {[%clk 0:01:15]}  Na5 {[%clk 0:01:20]} 30. Bxg3 {[%clk 0:01:10]}  Nc4 {[%clk 0:01:11]} 31. b3 {[%clk 0:01:02]}  Na3 {[%clk 0:01:10]} 32. Rxc8 {[%clk 0:00:46]}  Rxc8 {[%clk 0:01:11]} 33. Kd2 {[%clk 0:00:44]}  Nxb5 {[%clk 0:01:11]} 0-1


[Site "https://www.chess.com"]

[Event "Titled Tuesday Blitz October 18 Late 2022"]
[White "Sliwicki, Damian"]
[Black "Ozates, Tuna"]
[WhiteFideId "1127128"]
[BlackFideId "6354521"]
[WhiteElo "2058"]
[BlackElo "2151"]
[Result "0-1"]
[Round "02"]
[TimeControl "180+1"]
[Date "2022.10.19"]
[WhiteClock "0:00:17"]
[BlackClock "0:00:12"]

1. e4 {[%clk 0:02:56]}  e5 {[%clk 0:02:58]} 2. Nf3 {[%clk 0:02:56]}  Nc6 {[%clk 0:02:57]} 3. d4 {[%clk 0:02:56]}  exd4 {[%clk 0:02:56]} 4. Bc4 {[%clk 0:02:56]}  Nf6 {[%clk 0:02:50]} 5. O-O {[%clk 0:02:49]}  Nxe4 {[%clk 0:02:45]} 6. Nc3 {[%clk 0:02:48]}  dxc3 {[%clk 0:02:38]} 7. Bxf7+ {[%clk 0:02:47]}  Kxf7 {[%clk 0:02:38]} 8. Qd5+ {[%clk 0:02:48]}  Ke8 {[%clk 0:02:35]} 9. Re1 {[%clk 0:02:49]}  Ne7 {[%clk 0:02:25]} 10. Rxe4 {[%clk 0:02:46]}  c6 {[%clk 0:02:17]} 11. Qh5+ {[%clk 0:02:39]}  g6 {[%clk 0:02:14]} 12. Qe5 {[%clk 0:02:39]}  Rg8 {[%clk 0:01:59]} 13. Bg5 {[%clk 0:02:35]}  d6 {[%clk 0:01:46]} 14. Qf6 {[%clk 0:02:31]}  Bf5 {[%clk 0:01:44]} 15. Re3 {[%clk 0:02:15]}  cxb2 {[%clk 0:01:42]} 16. Rae1 {[%clk 0:02:07]}  Rg7 {[%clk 0:01:37]} 17. Bh6 {[%clk 0:01:40]}  Rf7 {[%clk 0:01:23]} 18. Qh8 {[%clk 0:01:40]}  Qd7 {[%clk 0:01:22]} 19. Rxe7+ {[%clk 0:01:32]}  Qxe7 {[%clk 0:01:21]} 20. Rxe7+ {[%clk 0:01:11]}  Rxe7 {[%clk 0:01:06]} 21. Qxb2 {[%clk 0:00:47]}  Bxh6 {[%clk 0:01:05]} 22. h3 {[%clk 0:00:40]}  b6 {[%clk 0:00:54]} 23. g4 {[%clk 0:00:29]}  Bg7 {[%clk 0:00:51]} 24. Qa3 {[%clk 0:00:23]}  Be4 {[%clk 0:00:47]} 25. Nd2 {[%clk 0:00:21]}  c5 {[%clk 0:00:37]} 26. Qa4+ {[%clk 0:00:19]}  b5 {[%clk 0:00:34]} 27. Qxb5+ {[%clk 0:00:18]}  Kf8 {[%clk 0:00:27]} 28. Nxe4 {[%clk 0:00:18]}  Rxe4 {[%clk 0:00:27]} 29. Qc6 {[%clk 0:00:18]}  Re1+ {[%clk 0:00:26]} 30. Kg2 {[%clk 0:00:19]}  Rd8 {[%clk 0:00:24]} 31. Qc7 {[%clk 0:00:19]}  Ree8 {[%clk 0:00:24]} 32. Qxa7 {[%clk 0:00:19]}  Kg8 {[%clk 0:00:25]} 33. Qc7 {[%clk 0:00:19]}  Be5 {[%clk 0:00:24]} 34. a4 {[%clk 0:00:18]}  Rc8 {[%clk 0:00:20]} 35. Qd7 {[%clk 0:00:18]}  Rcd8 {[%clk 0:00:21]} 36. Qc6 {[%clk 0:00:17]}  Re7 {[%clk 0:00:20]} 37. a5 {[%clk 0:00:18]}  Ra7 {[%clk 0:00:20]} 38. a6 {[%clk 0:00:18]}  Rda8 {[%clk 0:00:20]} 39. Qe4 {[%clk 0:00:14]}  Rxa6 {[%clk 0:00:19]} 40. f4 {[%clk 0:00:14]}  Bg7 {[%clk 0:00:19]} 41. Qe6+ {[%clk 0:00:14]}  Kh8 {[%clk 0:00:19]} 42. c4 {[%clk 0:00:15]}  Rd8 {[%clk 0:00:18]} 43. f5 {[%clk 0:00:15]}  Ra2+ {[%clk 0:00:18]} 44. Kf3 {[%clk 0:00:14]}  Ra3+ {[%clk 0:00:19]} 45. Ke4 {[%clk 0:00:13]}  Bd4 {[%clk 0:00:18]} 46. Kd5 {[%clk 0:00:10]}  Ra7 {[%clk 0:00:17]} 47. f6 {[%clk 0:00:10]}  Rf8 {[%clk 0:00:15]} 48. g5 {[%clk 0:00:10]}  Be5 {[%clk 0:00:15]} 49. h4 {[%clk 0:00:10]}  Raf7 {[%clk 0:00:15]} 50. Qg4 {[%clk 0:00:09]}  Kg8 {[%clk 0:00:16]} 51. Qe6 {[%clk 0:00:08]}  Kh8 {[%clk 0:00:16]} 52. Qg4 {[%clk 0:00:08]}  Kg8 {[%clk 0:00:15]} 53. h5 {[%clk 0:00:08]}  gxh5 {[%clk 0:00:15]} 54. Qxh5 {[%clk 0:00:09]}  Rd7 {[%clk 0:00:11]} 55. Qh6 {[%clk 0:00:08]}  Rdf7 {[%clk 0:00:08]} 56. Ke6 {[%clk 0:00:08]}  Re8+ {[%clk 0:00:08]} 57. Kf5 {[%clk 0:00:08]}  Kh8 {[%clk 0:00:07]} 58. Kg4 {[%clk 0:00:07]}  Rg8 {[%clk 0:00:07]} 59. Kh5 {[%clk 0:00:08]}  Rg6 {[%clk 0:00:06]} 60. Qxg6 {[%clk 0:00:06]}  hxg6+ {[%clk 0:00:07]} 61. Kxg6 {[%clk 0:00:07]}  Kg8 {[%clk 0:00:08]} 62. Kh6 {[%clk 0:00:07]}  Bxf6 {[%clk 0:00:08]} 63. Kg6 {[%clk 0:00:08]}  Bxg5 {[%clk 0:00:07]} 64. Kxg5 {[%clk 0:00:09]}  Kg7 {[%clk 0:00:07]} 65. Kh5 {[%clk 0:00:09]}  Rf4 {[%clk 0:00:07]} 66. Kg5 {[%clk 0:00:09]}  Rxc4 {[%clk 0:00:08]} 67. Kh5 {[%clk 0:00:10]}  Rd4 {[%clk 0:00:09]} 68. Kg5 {[%clk 0:00:10]}  c4 {[%clk 0:00:10]} 69. Kh5 {[%clk 0:00:11]}  c3 {[%clk 0:00:11]} 70. Kg5 {[%clk 0:00:12]}  c2 {[%clk 0:00:11]} 71. Kh5 {[%clk 0:00:13]}  Rd5+ {[%clk 0:00:11]} 72. Kg4 {[%clk 0:00:13]}  c1=Q {[%clk 0:00:11]} 73. Kf3 {[%clk 0:00:14]}  Qc3+ {[%clk 0:00:12]} 74. Ke4 {[%clk 0:00:14]}  Rd4+ {[%clk 0:00:12]} 75. Kf5 {[%clk 0:00:15]}  Qf3+ {[%clk 0:00:11]} 76. Ke6 {[%clk 0:00:16]}  Qf6+ {[%clk 0:00:11]} 77. Kd7 {[%clk 0:00:17]}  d5 {[%clk 0:00:12]} 78. Ke8 {[%clk 0:00:16]}  Ra4 {[%clk 0:00:12]} 79. Kd7 {[%clk 0:00:17]}  Ra7+ {[%clk 0:00:12]} 80. Kc8 {[%clk 0:00:17]}  Qf8# {[%clk 0:00:12]} 0-1


[Site "https://www.chess.com"]